Cogmind - Beta 15 --- EXPLORER MODE // 2025.07.23 @ 20:11:29 // Winter2019/RPGLIKE Player: User15V Result: Self-destructed Performance ------------- Evolutions (7) 3500 Regions Visited (14) 2800 Robots Destroyed (174) 870 Value Destroyed (8679) 8679 Prototype IDs (9) 180 Alien Tech Used (0) 0 Bonus (2887) 2887 TOTAL SCORE: 18916 Bonus ------- High Alert Combat Kills 765 Follower Combat Kills 222 Entered Garrisons 400 Entered DSFs 1000 Scanned by Researcher 500 Cogmind --------- Core Integrity 960/2200 Matter 410/450 Energy 200/200 System Corruption 1% Temperature Cool (0) Movement Hovering (56) Location -3/Testing Parts ------- > --- POWER (2) -------- Micro Fission Core Micro Antimatter Reactor > --- PROPULSION (4) --- Gravmag Array Antigrav Array > --- UTILITY (10) ----- Improved Heat Sink Experimental Cooling System Long-range Terrain Scanner Terrain Scan Processor Improved Salvage Targeting Computer Experimental Target Analyzer Precision Matter Filter Experimental Hacking Suite System Mapper High-powered Tractor Beam > --- WEAPON (4) ------- Hypervelocity Gauss Cannon Heavy Gauss Cannon Heavy Gauss Cannon Power Sword > --- INVENTORY (5) ---- Combat Antigrav System Combat Antigrav System Hardcell Cannon Hardcell Cannon Mining Laser Peak State ------------ > --- POWER ------------ Micro Fission Core Micro Antimatter Reactor > --- PROPULSION ------- Gravmag Array Antigrav Array > --- UTILITY ---------- Improved Heat Sink Experimental Cooling System Long-range Terrain Scanner Terrain Scan Processor Improved Salvage Targeting Computer Experimental Target Analyzer Precision Matter Filter Experimental Hacking Suite System Mapper High-powered Tractor Beam > --- WEAPON ----------- Hypervelocity Gauss Cannon Heavy Gauss Cannon Heavy Gauss Cannon Power Sword > --- INVENTORY -------- Combat Antigrav System Combat Antigrav System Hardcell Cannon Hardcell Cannon Mining Laser [Rating: 128] Favorites ----------- Power Nuclear Core Engine Light Ion Engine Power Core Nuclear Core Reactor Micro Antimatter Reactor Propulsion Gravmag Array Leg Aluminum Leg Wheel Wheel Hover Unit Gravmag Array Utility Improved Heat Sink Device Improved Heat Sink Processor Improved Salvage Targeting Computer Hackware System Mapper Protection Improved Medium Armor Plating Weapon Heavy Gauss Cannon Energy Gun Beam Rifle Ballistic Gun Light Assault Rifle Ballistic Cannon Heavy Gauss Cannon Slashing Weapon Power Sword Build | -11 -10 -9 -8 -7 -7 -7 -6 -6 -5 -5 -5 -4 -3 -3 ------- Run | Yrd Mat Mat Mat Fac DSF Gar Fac Ext Fac DSF Gar Fac Res Tes Slots Evolved 16 | 4 . . 5 3 . . 2 . 1 . . 1 . . Power 1 | . . . 1 . . . . . . . . . . . Propulsion 3 | 1 . . 2 . . . . . . . . . . . Utility 9 | 2 . . 1 2 . . 2 . 1 . . 1 . . Weapon 3 | 1 . . 1 1 . . . . . . . . . . Parts Attached 56 | 4 . 1 12 3 4 1 7 . 3 6 . 4 7 4 Power 6 | . . . 2 . 1 . 1 . . . . 1 1 . Engine 1 | . . . 1 . . . . . . . . . . . Core 4 | . . . 1 . 1 . 1 . . . . 1 . . Reactor 1 | . . . . . . . . . . . . . 1 . Propulsion 13 | 2 . . 3 1 . . 3 . 1 2 . . 1 . Treads . | . . . . . . . . . . . . . . . Leg . | . . . . . . . . . . . . . . . Wheel 2 | 2 . . . . . . . . . . . . . . Hover 11 | . . . 3 1 . . 3 . 1 2 . . 1 . Flight . | . . . . . . . . . . . . . . . Utility 19 | 1 . . 3 1 2 . . . 1 1 . 3 3 4 Device 11 | 1 . . 2 . 2 . . . . 1 . 2 2 1 Storage . | . . . . . . . . . . . . . . . Processor 4 | . . . . 1 . . . . . . . 1 1 1 Hackware 2 | . . . . . . . . . . . . . . 2 Protection 2 | . . . 1 . . . . . 1 . . . . . Artifact . | . . . . . . . . . . . . . . . Weapon 18 | 1 . 1 4 1 1 1 3 . 1 3 . . 2 . Energy Gun 2 | . . . 1 . . 1 . . . . . . . . Energy Cannon . | . . . . . . . . . . . . . . . Ballistic Gun 2 | 1 . . 1 . . . . . . . . . . . Ballistic Cannon 12 | . . 1 2 . 1 . 3 . 1 2 . . 2 . Launcher . | . . . . . . . . . . . . . . . Special Weapon . | . . . . . . . . . . . . . . . Impact Weapon . | . . . . . . . . . . . . . . . Slashing Weapon 2 | . . . . 1 . . . . . 1 . . . . Piercing Weapon . | . . . . . . . . . . . . . . . Special Melee Weapon . | . . . . . . . . . . . . . . . Unidentified Prototypes 6 | . . . . . . . . . . . . 2 . 4 Parts Lost 3 | . . . . . 1 . . . . . 1 . 1 . Power . | . . . . . . . . . . . . . . . Propulsion 1 | . . . . . 1 . . . . . . . . . Utility 2 | . . . . . . . . . . . 1 . 1 . Weapon . | . . . . . . . . . . . . . . . Highest Loss Streak 1 | . . . . . 1 . . . . . 1 . 1 . To Critical Strikes 1 | . . . . . . . . . . . 1 . . . Average Backups 3 | 1 1 1 2 4 3 5 3 2 2 3 3 4 5 5 Power . | . . . . 1 . . . . . . . . . . Propulsion . | . . . . . . . . . . 1 2 2 2 2 Utility . | . . . . . 1 . . . . . . . . . Weapon 2 | . 1 1 1 3 2 5 3 2 2 2 1 2 3 3 Tool/Special . | . . . . . . . . . . . . . . . Unused Backups 11 | . . . . . 1 . 2 . . 1 . . . 7 Power 1 | . . . . . 1 . . . . . . . . . Propulsion 4 | . . . . . . . . . . . . . . 4 Utility . | . . . . . . . . . . . . . . . Weapon 6 | . . . . . . . 2 . . 1 . . . 3 Tool/Special . | . . . . . . . . . . . . . . . Average Slot Usage (%) 82 | . 87 87 75 86 84 93 82 82 77 77 78 76 75 86 Engine 1 | . 12 12 4 6 4 . . . . . . . . . Core 7 | . . . 1 6 7 12 11 11 10 10 10 10 5 5 Reactor 1 | . . . . . . . . . . . . . 4 5 Wheel 2 | . 25 25 7 . . . . . . . . . . . Hover 13 | . . . 14 21 19 18 15 16 15 15 14 15 10 10 Device 22 | . 12 12 20 20 15 25 22 21 19 23 22 21 25 25 Processor 6 | . . . . 3 6 6 5 5 5 5 5 5 8 12 Hackware 1 | . . . . . . . . . . . . . . 8 Protection 4 | . 12 12 2 6 6 6 5 5 5 5 5 5 1 . Energy Gun 2 | . . . 8 6 6 6 1 . . . . . . . Ballistic Gun 1 | . 25 17 2 . . . . . . . . . . . Ballistic Cannon 13 | . . 7 11 13 12 12 13 16 15 15 15 15 15 15 Slashing Weapon 4 | . . . . . 5 6 5 5 5 2 5 5 5 5 Peak Build Rating 128 | 9 9 9 30 36 48 50 65 65 69 82 81 92 100 128 Average Rating 66 | 5 9 8 16 33 39 48 61 64 65 70 76 81 93 122 On Entrance 48 | 4 9 9 9 30 36 48 50 65 61 68 81 77 86 97 Naked Turns . | . . . . . . . . . . . . . . . Heaviest Build 67 | 7 7 9 31 31 44 45 49 49 53 61 61 60 67 61 Greatest Support 63 | 25 25 25 31 39 39 32 57 57 57 63 63 63 63 61 Greatest Overweight (x) 1 | . . . . . 1 1 1 . . . 1 . 1 . Average Overweight (x) . | . . . . . . 1 . . . . . . . . Largest Inventory Capacity 5 | 4 4 4 5 5 5 5 5 5 5 5 5 5 5 5 Average Capacity 4 | 4 4 4 4 5 5 5 5 5 5 5 5 5 5 5 Most Carried 5 | 4 2 3 5 5 5 5 5 3 3 5 4 5 5 5 Average Carried 3 | 1 1 1 2 4 3 5 3 2 2 3 3 4 5 5 Final Capacity 5 | 4 4 4 5 5 5 5 5 5 5 5 5 5 5 5 Final Carried 5 | 1 2 3 5 4 5 5 2 3 2 3 3 5 5 5 Class Distribution -------------------- 48% | Hacker-Scout 21% | Hacker-Assassin 15% | Wizard-Scout 13% | Hacker-Mutant Dominant Class ---------------- Hacker-Mutant | -10/Materials Hacker-Mutant | -9/Materials Hacker-Mutant | -8/Materials Hacker-Scout | -7/Factory Hacker-Assassin | -7/DSF Hacker-Assassin | -7/Garrison Hacker-Scout | -6/Factory Hacker-Scout | -6/Extension Hacker-Scout | -5/Factory Hacker-Scout | -5/DSF Hacker-Scout | -5/Garrison Hacker-Scout | -4/Factory Hacker-Scout | -3/Research Wizard-Scout | -3/Testing Resources | -11 -10 -9 -8 -7 -7 -7 -6 -6 -5 -5 -5 -4 -3 -3 ----------- Run | Yrd Mat Mat Mat Fac DSF Gar Fac Ext Fac DSF Gar Fac Res Tes Matter Collected 5092 | 270 . 159 273 46 208 332 152 51 104 403 907 912 685 590 Remotely 1473 | . . . . . . . . . . . . 198 685 590 Salvage Created 6805 | 142 . 325 322 . 552 499 145 141 . 245 476 1300 1572 1086 Parts 327 | 10 . 20 18 . 14 28 11 7 . 14 13 25 84 83 Haulers Intercepted 7 | . . . 2 . . . . . . . . 4 1 . Recyclers Shooed 2 | . . . . . . . . 1 . . . 1 . . Parts Field Recycled . | . . . . . . . . . . . . . . . Retrieved Matter . | . . . . . . . . . . . . . . . Parts Self-Destructed . | . . . . . . . . . . . . . . . Prevented . | . . . . . . . . . . . . . . . Kills | -11 -10 -9 -8 -7 -7 -7 -6 -6 -5 -5 -5 -4 -3 -3 ------- Run | Yrd Mat Mat Mat Fac DSF Gar Fac Ext Fac DSF Gar Fac Res Tes Combat Hostiles Destroyed 138 | . . 9 5 . 8 18 2 3 . 8 18 15 29 23 Guns 11 | . . 3 3 . 2 3 . . . . . . . . Cannons 126 | . . 6 2 . 6 15 2 3 . 8 17 15 29 23 Classes Destroyed 19 | 2 . 3 2 . 2 1 3 1 . 1 . 1 1 2 Worker 4 | . . . . . . . 1 . . . . 2 . 1 Builder 5 | . . . . . . . 1 . . . . . 3 1 Tunneler 6 | 5 . . . . . . . . . . . . 1 . Hauler 7 | . . . 2 . . . . . . . . 4 1 . Recycler 6 | 1 . . . . . . . . . . . 3 1 1 Operator 3 | . . . . . . . . . . . . . 2 1 Watcher 4 | . . 1 . . . . . . . . . . 2 1 Swarmer 30 | . . . 2 . 2 4 . . . 3 6 4 9 . Cutter 1 | . . . . . . . . . . 1 . . . . Grunt 51 | . . 8 1 . 4 9 . . . 3 6 5 7 8 Brawler 3 | . . . . . 1 1 . . . . 1 . . . Duelist 3 | . . . . . . 1 . . . . 1 . . 1 Researcher 1 | . . . . . . . . . . . . . . 1 Sentry 16 | . . 1 2 . . 3 1 2 . . . 3 4 . Hunter 16 | . . . . . . . 1 . . . 3 2 6 4 Programmer 12 | . . . . . . . . . . . . 1 3 8 Heavy 2 | . . . . . 1 . . . . 1 . . . . Behemoth 2 | . . . . . . . . 1 . . 1 . . . Protovariant Y 1 | . . . . . . . . . . . . . . 1 Protovariant D 1 | . . . . . . . . . . . . . . 1 Best Kill Streak 13 | 4 . 5 3 . 4 4 4 3 . 4 11 13 10 9 Combat Bots Only 11 | . . 5 2 . 4 4 2 3 . 4 11 5 5 9 Max Kills in Single Turn 2 | 1 . 1 1 . 1 1 2 1 . 2 2 2 2 2 Gunslinging . | . . . . . . . . . . . . . . . Exploded . | . . . . . . . . . . . . . . . Melee . | . . . . . . . . . . . . . . . Uniques/NPCs Destroyed . | . . . . . . . . . . . . . . . Combat | -11 -10 -9 -8 -7 -7 -7 -6 -6 -5 -5 -5 -4 -3 -3 -------- Run | Yrd Mat Mat Mat Fac DSF Gar Fac Ext Fac DSF Gar Fac Res Tes Hostile Shots Fired 933 | . 2 59 5 . 27 141 24 120 . 21 144 69 142 179 Missed 366 | . . 14 3 . 6 41 9 62 . 10 59 33 62 67 Hits 567 | . 2 45 2 . 21 100 15 58 . 11 85 36 80 112 Melee 4 | . . . . . . 2 . . . 2 . . . . Projectile 563 | . 2 45 2 . 21 98 15 58 . 9 85 36 80 112 AOE 4 | . . . . . . . . . . 2 . . . 2 Critical Strikes 33 | . . 1 . . 3 3 . 1 . 2 7 3 3 10 Damage Taken 6085 | . 13 328 8 . 413 718 69 545 . 388 930 490 938 1245 Core 4537 | . 11 245 6 . 322 519 46 391 . 260 666 356 728 987 Absorbed by Shields 13 | . . . . . . 13 . . . . . . . . Redirected to Core 3833 | . 5 190 6 . 283 416 46 299 . 239 563 356 610 820 Redirected to Shielding 11 | . . 11 . . . . . . . . . . . . Ignored by Resistances 4226 | . 8 207 6 . 240 473 49 334 . 219 625 342 673 1050 Core Remaining (%) 64 | 100 98 99 99 . . 68 . 31 . . 13 9 . . Volleys Fired 365 | 15 4 33 9 . 15 46 6 16 . 14 42 44 63 58 Largest 3 | 2 2 2 3 . 3 3 3 3 . 3 3 3 3 3 Hottest 153 | 40 40 50 123 . 133 133 120 120 . 145 145 145 153 153 Shots Fired 1038 | 30 8 66 22 . 45 138 18 48 . 42 126 132 189 174 Gun 151 | 30 8 41 11 . 15 46 . . . . . . . . Cannon 887 | . . 25 11 . 30 92 18 48 . 42 126 132 189 174 Launcher . | . . . . . . . . . . . . . . . Special . | . . . . . . . . . . . . . . . Kinetic 969 | 30 8 66 14 . 30 92 18 48 . 42 126 132 189 174 Thermal 69 | . . . 8 . 15 46 . . . . . . . . Explosive . | . . . . . . . . . . . . . . . Electromagnetic . | . . . . . . . . . . . . . . . Robot Hit Streak 42 | 13 6 31 9 . 40 29 13 38 . 17 32 18 39 42 Robot Miss Streak 3 | 2 2 1 1 . 1 3 1 1 . 3 2 2 3 2 Penetration Max 1 | . . . . . . 1 . . . . 1 1 1 1 Secondary Targets . | . . . . . . . . . . . . . . . Shots Hit Robots 705 | 23 6 58 14 . 37 103 8 42 . 24 90 85 125 90 Core Hits 296 | 12 2 20 9 . 17 37 6 9 . 14 30 36 58 46 Critical Kills 33 | . . . . . . . . . . . 3 6 14 10 Critical Parts Destroyed 53 | . . . . . . . . . . 3 10 14 19 7 Critical Strikes 165 | . . 1 2 . 3 12 . 1 . 4 25 33 45 39 Burn 7 | . . . 2 . 2 3 . . . . . . . . Destroy 92 | . . . . . . . . . . 3 15 21 34 19 Blast 66 | . . 1 . . 1 9 . 1 . 1 10 12 11 20 Melee Attacks 1 | . . . . . . . . . . . . . 1 . Impact . | . . . . . . . . . . . . . . . Slashing 1 | . . . . . . . . . . . . . 1 . Piercing . | . . . . . . . . . . . . . . . Sneak Attacks 1 | . . . . . . . . . . . . . 1 . Combat Hostiles . | . . . . . . . . . . . . . . . Follow-up Attacks . | . . . . . . . . . . . . . . . Damage Inflicted 19696 | 192 42 683 242 . 777 2246 244 1115 . 721 2975 3134 4038 3287 Guns 1317 | 192 42 292 106 . 218 467 . . . . . . . . Cannons 17942 | . . 391 136 . 559 1779 244 1115 . 721 2975 2779 3956 3287 Explosions 355 | . . . . . . . . . . . . 355 . . Melee 82 | . . . . . . . . . . . . . 82 . Ramming . | . . . . . . . . . . . . . . . Kinetic 18502 | 192 42 683 170 . 559 1779 244 1115 . 721 2975 2779 3956 3287 Thermal 757 | . . . 72 . 218 467 . . . . . . . . Explosive 355 | . . . . . . . . . . . . 355 . . Electromagnetic . | . . . . . . . . . . . . . . . Impact . | . . . . . . . . . . . . . . . Slashing 82 | . . . . . . . . . . . . . 82 . Piercing . | . . . . . . . . . . . . . . . Highest Corruption 1 | . . 1 . . . . . . . . . . . 1 Average Corruption 1 | . . 1 . . . . . . . . . . . 1 Corruption Purged . | . . . . . . . . . . . . . . . Corruption Blocked . | . . . . . . . . . . . . . . . Effects 4 | . . 4 . . . . . . . . . . . . Heat Flow Errors 1 | . . 1 . . . . . . . . . . . . Energy Discharges 1 | . . 1 . . . . . . . . . . . . Parts Fused 1 | . . 1 . . . . . . . . . . . . Data Loss (minor) 1 | . . 1 . . . . . . . . . . . . Overload Shots . | . . . . . . . . . . . . . . . Overflow Damage 383 | . . . . . 2 6 . 1 . . 43 182 83 66 Projectiles 264 | . . . . . 2 6 . 1 . . 43 63 83 66 Explosions 119 | . . . . . . . . . . . . 119 . . Melee . | . . . . . . . . . . . . . . . Knockbacks 101 | . . 3 1 . 2 6 1 1 . 7 21 9 34 16 Impact . | . . . . . . . . . . . . . . . Kinetic 93 | . . 3 1 . 2 6 1 1 . 6 19 8 30 16 Secondary 8 | . . . . . . . . . . 1 2 1 4 . Self-Inflicted Damage 92 | . . . . . . . . . . . . 92 . . Shots 3 | . . . . . . . . . . . . 3 . . Rammed . | . . . . . . . . . . . . . . . Targets Rammed . | . . . . . . . . . . . . . . . Kicked . | . . . . . . . . . . . . . . . Crushed . | . . . . . . . . . . . . . . . Highest Temperature 186 | . . 186 . . . 9 . 9 . . 13 3 . 1 Average Temperature 20 | . . 23 . . . 9 . 9 . . 7 3 . 1 Received Heat Transfer 1812 | . 12 297 . . 72 405 12 180 . 9 294 111 141 279 Siege Activations . | . . . . . . . . . . . . . . . Martial Activations . | . . . . . . . . . . . . . . . Shielding Activations . | . . . . . . . . . . . . . . . Robots Disrupted . | . . . . . . . . . . . . . . . Combat Hostiles . | . . . . . . . . . . . . . . . Robots Corrupted 1 | . . . . . . . . . . . 1 . . . Combat Hostiles 1 | . . . . . . . . . . . 1 . . . Parts Fried 4 | . . . . . . . . . . . 4 . . . Impact Corruptions 1 | . . . . . . . . . . . 1 . . . Robots Melted . | . . . . . . . . . . . . . . . Combat Hostiles . | . . . . . . . . . . . . . . . Parts Melted 1 | . . . 1 . . . . . . . . . . . Heat Transferred 2442 | . . . 333 . 703 1406 . . . . . . . . Parts Sabotaged . | . . . . . . . . . . . . . . . Parts Stolen . | . . . . . . . . . . . . . . . Parts Stripped . | . . . . . . . . . . . . . . . Power Chain Reactions . | . . . . . . . . . . . . . . . Alert | -11 -10 -9 -8 -7 -7 -7 -6 -6 -5 -5 -5 -4 -3 -3 ------- Run | Yrd Mat Mat Mat Fac DSF Gar Fac Ext Fac DSF Gar Fac Res Tes Maximum Alert Level 3 | . . . . . . 3 1 . . . 2 2 3 2 Low Security (%) 38 | 100 100 100 100 100 100 23 4 100 100 100 21 . . . Level 1 34 | . . . . . . 30 95 . . . 31 45 43 71 Level 2 23 | . . . . . . 18 . . . . 47 54 55 28 Level 3 4 | . . . . . . 27 . . . . . . . . Level 4 . | . . . . . . . . . . . . . . . Level 5 . | . . . . . . . . . . . . . . . High Security . | . . . . . . . . . . . . . . . Max Security . | . . . . . . . . . . . . . . . Sterilizations 2 | . . . . . 1 . . . . 1 . . . . Peak Influence 722 | 10 7 178 70 3 194 722 281 67 19 184 667 623 701 580 Initial 289 | . . . 40 3 . 113 281 67 19 . 107 259 236 289 Average 282 | 2 1 67 30 1 92 424 237 40 6 55 387 444 450 365 Influence Increases 4376 | 30 7 238 145 . 194 609 103 63 1 184 570 619 910 703 Destroy 0b10 Robot/C 2900 | . . 180 100 . 160 480 40 60 . 160 360 300 580 480 Destroy 0b10 Robot/NC 175 | 30 . 5 10 . . . 10 . . . . 45 50 25 Destroy Leader 502 | . . 52 34 . 30 40 20 . . 20 30 78 146 52 Allied During Kill 23 | . . . . . . 21 2 . . . . . . . Successful Hack 52 | . 7 . . . . 3 26 . 1 . . 10 5 . Disable Machine 80 | . . . . . 4 . . . . . . 24 12 40 Anti-Garrison Action 100 | . . . . . . 50 . . . . 50 . . . Destroy Structure 424 | . . 1 1 . . 15 5 3 . 4 25 162 102 106 Partial Spotted 15 | . . . . . . . . . . . . . 15 . Lose Combat Pursuer 105 | . . . . . . . . . . . 105 . . . Influence Decreases 3849 | 30 7 105 268 10 . 81 636 197 55 1 87 678 832 862 Entered New Map 2035 | . . . 93 7 . 81 441 122 36 1 77 408 372 397 Time Decay 1794 | 30 7 105 175 3 . . 195 75 19 . . 270 450 465 Lost Part 20 | . . . . . . . . . . . 10 . 10 . Squads Dispatched 19 | . . 2 1 . 1 . . . . 2 . 4 5 4 Investigation 2 | . . 1 . . . . . . . . . 1 . . Extermination 3 | . . . . . . . . . . . . 1 1 1 Reinforcement 12 | . . 1 1 . 1 . . . . 2 . 2 2 3 Assault 1 | . . . . . . . . . . . . . 1 . Garrison 1 | . . . . . . . . . . . . . 1 . Intercept . | . . . . . . . . . . . . . . . Searches Triggered . | . . . . . . . . . . . . . . . Construction Impeded 2 | . . . . . . . . . . . . . 1 1 Haulers Reinforced 3 | . . . . . . . . . . . . 2 1 . Active Scanning Responses . | . . . . . . . . . . . . . . . Cargo Convoy Interrupts . | . . . . . . . . . . . . . . . Stealth | -11 -10 -9 -8 -7 -7 -7 -6 -6 -5 -5 -5 -4 -3 -3 --------- Run | Yrd Mat Mat Mat Fac DSF Gar Fac Ext Fac DSF Gar Fac Res Tes Distress Signals . | . . . . . . . . . . . . . . . Communications Jammed . | . . . . . . . . . . . . . . . Distress Signals . | . . . . . . . . . . . . . . . Times Spotted 172 | . 3 14 7 . 8 24 3 4 . 10 25 13 31 30 Peak Tracking Total 10 | . 2 8 3 . 4 4 3 3 . 3 7 4 4 10 Tactical Retreats 5 | . . . . . . . . . . . 5 . . . Traps | -11 -10 -9 -8 -7 -7 -7 -6 -6 -5 -5 -5 -4 -3 -3 ------- Run | Yrd Mat Mat Mat Fac DSF Gar Fac Ext Fac DSF Gar Fac Res Tes Traps Triggered 11 | . . . 1 . 3 5 1 . . . . 1 . . Indirectly . | . . . . . . . . . . . . . . . Trap Hack Attempts . | . . . . . . . . . . . . . . . Triggered . | . . . . . . . . . . . . . . . Disarmed . | . . . . . . . . . . . . . . . Reprogrammed . | . . . . . . . . . . . . . . . Reused . | . . . . . . . . . . . . . . . Traps Extracted . | . . . . . . . . . . . . . . . Installed . | . . . . . . . . . . . . . . . Triggered . | . . . . . . . . . . . . . . . Machines | -11 -10 -9 -8 -7 -7 -7 -6 -6 -5 -5 -5 -4 -3 -3 ---------- Run | Yrd Mat Mat Mat Fac DSF Gar Fac Ext Fac DSF Gar Fac Res Tes Machines Disabled 24 | . . . . . 1 1 . . . . . 6 3 13 Max in Single Turn 2 | . . . . . 1 1 . . . . . 2 1 2 Garrison Access 5 | . . . 1 . . . 1 . 1 . . . 1 1 Garrison Relay 1 | . . . . . . 1 . . . . . . . . Machines Repaired . | . . . . . . . . . . . . . . . Machines Dismantled . | . . . . . . . . . . . . . . . Machines Sabotaged . | . . . . . . . . . . . . . . . Overloaded Fab Kills . | . . . . . . . . . . . . . . . Hacking | -11 -10 -9 -8 -7 -7 -7 -6 -6 -5 -5 -5 -4 -3 -3 --------- Run | Yrd Mat Mat Mat Fac DSF Gar Fac Ext Fac DSF Gar Fac Res Tes Machines Accessed 17 | . 1 2 1 1 . 2 2 1 2 . 1 1 2 1 Terminals 12 | . 1 2 . 1 . 2 1 1 1 . 1 1 1 . Fabricators . | . . . . . . . . . . . . . . . Repair Stations . | . . . . . . . . . . . . . . . Recycling Units . | . . . . . . . . . . . . . . . Scanalyzers . | . . . . . . . . . . . . . . . Garrison Access 5 | . . . 1 . . . 1 . 1 . . . 1 1 Total Hacks 27 | . 2 6 1 1 . 2 3 1 2 . 3 2 3 1 Successful 16 | . 1 . 1 1 . 2 3 1 2 . . 2 2 1 Failed 11 | . 1 6 . . . . . . . . 3 . 1 . Catastrophic 2 | . . 2 . . . . . . . . . . . . Database Lockouts . | . . . . . . . . . . . . . . . Manual 10 | . 2 5 . . . . 1 . . . . . 2 . Terminals 22 | . 2 6 . 1 . 2 2 1 1 . 3 2 2 . Fabricators . | . . . . . . . . . . . . . . . Repair Stations . | . . . . . . . . . . . . . . . Recycling Units . | . . . . . . . . . . . . . . . Scanalyzers . | . . . . . . . . . . . . . . . Garrison Access 5 | . . . 1 . . . 1 . 1 . . . 1 1 Terminal Hacks 11 | . 1 . . 1 . 2 2 1 1 . . 2 1 . Open Door 2 | . . . . . . 1 . 1 . . . . . . Open DSF 2 | . . . . 1 . . . . 1 . . . . . Level Access Points 3 | . 1 . . . . . 1 . . . . 1 . . Branch Access Points 3 | . . . . . . . 1 . . . . 1 1 . Emergency Access Points 1 | . . . . . . 1 . . . . . . . . Fabricator Hacks . | . . . . . . . . . . . . . . . Repair Station Hacks . | . . . . . . . . . . . . . . . Recycling Unit Hacks . | . . . . . . . . . . . . . . . Scanalyzer . | . . . . . . . . . . . . . . . Garrison Access Hacks 5 | . . . 1 . . . 1 . 1 . . . 1 1 Seal Access 5 | . . . 1 . . . 1 . 1 . . . 1 1 Unauthorized Hacks . | . . . . . . . . . . . . . . . Terminals . | . . . . . . . . . . . . . . . Fabricators . | . . . . . . . . . . . . . . . Repair Stations . | . . . . . . . . . . . . . . . Recycling Units . | . . . . . . . . . . . . . . . Scanalyzers . | . . . . . . . . . . . . . . . Garrison Access . | . . . . . . . . . . . . . . . Data Cores Recovered 1 | . . . . . . . . . . . . . 1 . Used . | . . . . . . . . . . . . . . . Hacking Detections 5 | . 1 2 . . . . . . . . 1 1 . . Full Trace Events 3 | . . 2 . . . . . . . . 1 . . . Feedback Events 1 | . . 1 . . . . . . . . . . . . Corruption 1 | . . 1 . . . . . . . . . . . . Feedback Blocked . | . . . . . . . . . . . . . . . Robot Schematics Acquired 1 | . . . . . . . . . . . . . . 1 Robots Built . | . . . . . . . . . . . . . . . Authchips . | . . . . . . . . . . . . . . . Time . | . . . . . . . . . . . . . . . Total Robot Build Rating . | . . . . . . . . . . . . . . . Part Schematics Acquired 3 | . . . . . . . . . . . . . . 3 Parts Built . | . . . . . . . . . . . . . . . Authchips . | . . . . . . . . . . . . . . . Time . | . . . . . . . . . . . . . . . Total Part Build Rating . | . . . . . . . . . . . . . . . Parts Repaired . | . . . . . . . . . . . . . . . Time . | . . . . . . . . . . . . . . . Parts Recycled . | . . . . . . . . . . . . . . . Recycled Matter . | . . . . . . . . . . . . . . . Retrieved Matter . | . . . . . . . . . . . . . . . Retrieved Components . | . . . . . . . . . . . . . . . Parts Scanalyzed . | . . . . . . . . . . . . . . . Part Schematics Acquired . | . . . . . . . . . . . . . . . Parts Damaged . | . . . . . . . . . . . . . . . Bothacking | -11 -10 -9 -8 -7 -7 -7 -6 -6 -5 -5 -5 -4 -3 -3 ------------ Run | Yrd Mat Mat Mat Fac DSF Gar Fac Ext Fac DSF Gar Fac Res Tes Used RIF Installer . | . . . . . . . . . . . . . . . Robots Hacked . | . . . . . . . . . . . . . . . Non-combat . | . . . . . . . . . . . . . . . Combat . | . . . . . . . . . . . . . . . Robot Hacks Applied . | . . . . . . . . . . . . . . . Relay Couplers Released 2 | . . . . . . 2 . . . . . . . . Machine Destruction 2 | . . . . . . 2 . . . . . . . . Fabnet Peak Effective % . | . . . . . . . . . . . . . . . Robots Rewired 4 | . . . . . . 4 . . . . . . . . Allies Hacked . | . . . . . . . . . . . . . . . Hacks Repelled . | . . . . . . . . . . . . . . . Allies | -11 -10 -9 -8 -7 -7 -7 -6 -6 -5 -5 -5 -4 -3 -3 -------- Run | Yrd Mat Mat Mat Fac DSF Gar Fac Ext Fac DSF Gar Fac Res Tes Total Allies 4 | . . . . . . 4 . . . . . . . . Largest Group 4 | . . . . . . 4 3 . . . . . . . Highest-Rated Group 120 | . . . . . . 120 85 . . . . . . . Highest-Rated Ally 39 | . . . . . . 39 34 . . . . . . . Initial Warlord ECA Mod 119 | . . . . . . 10 10 10 9 9 19 18 17 17 Total Orders . | . . . . . . . . . . . . . . . Ally Attacks 29 | . . . . . . 28 1 . . . . . . . Total Damage 389 | . . . . . . 369 20 . . . . . . . Kills 7 | . . . . . . 7 . . . . . . . . Allies Corrupted . | . . . . . . . . . . . . . . . Allies Melted . | . . . . . . . . . . . . . . . Intel | -11 -10 -9 -8 -7 -7 -7 -6 -6 -5 -5 -5 -4 -3 -3 ------- Run | Yrd Mat Mat Mat Fac DSF Gar Fac Ext Fac DSF Gar Fac Res Tes Active Infowar (turns) 3898 | 19 66 225 181 36 253 633 261 111 71 186 248 363 612 633 Terrain 3898 | 19 66 225 181 36 253 633 261 111 71 186 248 363 612 633 Robot Analysis Total . | . . . . . . . . . . . . . . . Derelict Logs Recovered . | . . . . . . . . . . . . . . . Drone Launches . | . . . . . . . . . . . . . . . Drone Recoveries . | . . . . . . . . . . . . . . . Exploration | -11 -10 -9 -8 -7 -7 -7 -6 -6 -5 -5 -5 -4 -3 -3 ------------- Run | Yrd Mat Mat Mat Fac DSF Gar Fac Ext Fac DSF Gar Fac Res Tes Turns Passed 4109 | 130 66 225 252 36 282 633 261 111 71 186 248 363 612 633 Spaces Moved 3217 | 57 68 149 181 61 175 308 328 96 79 110 148 296 611 550 Core . | . . . . . . . . . . . . . . . Treads . | . . . . . . . . . . . . . . . Legs 33 | 33 . . . . . . . . . . . . . . Wheels 303 | 24 68 149 62 . . . . . . . . . . . Hover 2881 | . . . 119 61 175 308 328 96 79 110 148 296 611 550 Flight . | . . . . . . . . . . . . . . . Fastest Speed 48 | 80 80 80 52 48 48 112 52 58 52 52 66 66 56 56 Average Speed 68 | 103 80 80 61 50 95 112 59 58 53 62 66 66 57 56 Slowest Speed 126 | 120 80 80 80 52 112 112 112 58 58 66 126 66 106 56 Overloaded Moves . | . . . . . . . . . . . . . . . Propulsion Burnouts . | . . . . . . . . . . . . . . . Robots Hopped . | . . . . . . . . . . . . . . . Potential Cave-ins 3 | . . . . . . . . . . . . . . 3 Cave-ins Triggered . | . . . . . . . . . . . . . . . Exploration Rate (%) 31 | 3 29 18 19 2 95 54 11 24 3 81 31 13 19 71 Regions Visited 14 Branch Regions 2 Pre-discovered Areas . | . . . . . . . . . . . . . . . Known Exits Taken 10 | 1 1 1 1 1 . . 1 1 1 . . 1 1 . Unknown Exits Taken . | . . . . . . . . . . . . . . . Scrap Searched . | . . . . . . . . . . . . . . . Spaces Dug 100 | . . . . . . 1 . . . . . 84 3 12 Terrain Destroyed 259 | . . . 1 . . 1 7 3 . 4 13 112 61 57 Melee . | . . . . . . . . . . . . . . . Projectile 181 | . . . 1 . . 1 7 3 . 4 13 34 61 57 AOE 78 | . . . . . . . . . . . . 78 . . Terrain Rammed . | . . . . . . . . . . . . . . . Walls Destroyed . | . . . . . . . . . . . . . . . Machines Disabled . | . . . . . . . . . . . . . . . Actions | -11 -10 -9 -8 -7 -7 -7 -6 -6 -5 -5 -5 -4 -3 -3 --------- Run | Yrd Mat Mat Mat Fac DSF Gar Fac Ext Fac DSF Gar Fac Res Tes Total 4328 | 104 72 197 302 66 257 493 384 114 107 194 202 363 728 745 Wait 330 | 23 . . 84 . 13 33 22 2 18 48 . . 5 82 Move 3203 | 56 67 148 180 61 174 306 327 95 78 109 147 295 610 550 Hop . | . . . . . . . . . . . . . . . Pick Up 51 | 5 1 2 13 1 7 . 7 1 3 5 1 3 . 2 Fast Attach 22 | . . . . . 1 . 3 . . 5 . 3 6 4 Attach 34 | 4 . 1 11 3 5 . 6 . 3 . 1 . . . Detach 1 | . . . . 1 . . . . . . . . . . Swap 12 | . . . 2 . . 1 2 . 2 3 . 1 1 . Drop 42 | 1 . 1 3 . 3 1 11 . 3 6 . 3 7 3 Fire 365 | 15 4 33 9 . 15 46 6 16 . 14 42 44 63 58 Melee 1 | . . . . . . . . . . . . . 1 . Ram . | . . . . . . . . . . . . . . . Kick . | . . . . . . . . . . . . . . . Crush . | . . . . . . . . . . . . . . . Escape Stasis 102 | . . . . . 39 63 . . . . . . . . Rewire 16 | . . . . . . 16 . . . . . . . . Trap . | . . . . . . . . . . . . . . . Miscellaneous 149 | . . 12 . . . 27 . . . 4 11 14 35 46 Route ------- -11/Scrapyard -10/Materials (discovered 3 exits: *Mat x3) -9/Materials -8/Materials -7/Factory -7/DSF -7/Garrison (discovered 2 exits: *Fac x2) -6/Factory (discovered 8 exits: Fac x4 / Low x2 / *Ext x2) -6/Extension -5/Factory -5/DSF -5/Garrison -4/Factory (discovered 6 exits: *Res x4 / Upp x2) -3/Research (discovered 4 exits: *Res / Arm / *Tes x2) -3/Testing (discovered 1 exit: *Res) History --------- Turn | Location | Event 1 | -11/Scrapyard | Upgraded with Propulsion slot (x1) 1 | -11/Scrapyard | Upgraded with Utility slot (x2) 1 | -11/Scrapyard | Upgraded with Weapon slot (x1) 1 | -11/Scrapyard | Identified exit to Materials 1 | -11/Scrapyard | Discovered exit to Materials (range 2) 131 | -11/Scrapyard | Entered Materials 138 | -10/Materials | Identified exit to Materials 197 | -10/Materials | Entered another Materials area 199 | -9/Materials | Reached level 2 199 | -9/Materials | Reached level 3 303 | -9/Materials | Build established: Hacker-Mutant 363 | -9/Materials | Reached level 4 389 | -9/Materials | Identified exit to Materials 389 | -9/Materials | Discovered exit to Materials (range 13) 422 | -9/Materials | Entered another Materials area 424 | -8/Materials | Reached level 5 424 | -8/Materials | Reached level 6 575 | -8/Materials | Upgraded with Power slot (x1) 575 | -8/Materials | Upgraded with Propulsion slot (x2) 575 | -8/Materials | Upgraded with Utility slot (x1) 575 | -8/Materials | Upgraded with Weapon slot (x1) 610 | -8/Materials | Identified exit to Factory 610 | -8/Materials | Discovered exit to Factory (range 13) 674 | -8/Materials | Entered Factory 676 | -7/Factory | Reached level 7 676 | -7/Factory | Reached level 8 676 | -7/Factory | Reached level 9 680 | -7/Factory | Upgraded with Utility slot (x2) 680 | -7/Factory | Upgraded with Weapon slot (x1) 710 | -7/Factory | Identified exit to DSF 710 | -7/Factory | Entered DSF 712 | -7/DSF | Reached level 10 748 | -7/DSF | Additional patrols routed to DSF 748 | -7/DSF | Identified exit to Garrison 748 | -7/DSF | Discovered exit to Garrison (range 17) 769 | -7/DSF | Reached level 11 955 | -7/DSF | Sterilization system engaged 975 | -7/DSF | Ambient heat levels rising (+10) 990 | -7/DSF | Ambient heat levels rising (+10) 992 | -7/DSF | Entered Garrison 1057 | -7/Garrison | Core integrity fell below 50% 1065 | -7/Garrison | Reached level 12 1073 | -7/Garrison | Build established: Hacker-Assassin 1128 | -7/Garrison | Triggered checkpoint 1199 | -7/Garrison | Garrison Relay disabled 1326 | -7/Garrison | Triggered checkpoint 1364 | -7/Garrison | Triggered checkpoint 1367 | -7/Garrison | Reached level 13 1463 | -7/Garrison | Identified exit to Factory 1463 | -7/Garrison | Discovered exit to Factory (range 16) 1497 | -7/Garrison | Attempted to access garrison exit controls, blocked by remote lockdown 1593 | -7/Garrison | Discovered exit to Factory (range 9) 1625 | -7/Garrison | Entered Factory 1625 | -6/Factory | Accompanied by 3 allies 1627 | -6/Factory | Reached level 14 1630 | -6/Factory | Upgraded with Utility slot (x2) 1672 | -6/Factory | Identified exit to Factory 1672 | -6/Factory | Identified exit to Lower Caves 1672 | -6/Factory | Identified exit to Extension 1795 | -6/Factory | Reached level 15 1886 | -6/Factory | Entered Extension 1931 | -6/Extension | Spotted B-75 Beast 1932 | -6/Extension | Spotted B-75 Beast 1940 | -6/Extension | Build established: Hacker-Scout 1941 | -6/Extension | Discovered exit to Factory (range 16) 1965 | -6/Extension | Core integrity fell below 50% 1976 | -6/Extension | Destroyed B-75 Beast 1986 | -6/Extension | Reached level 16 1997 | -6/Extension | Entered Factory 1998 | -5/Factory | Core integrity fell below 50% 1999 | -5/Factory | Reached level 17 2015 | -5/Factory | Upgraded with Utility slot (x1) 2068 | -5/Factory | Identified exit to DSF 2068 | -5/Factory | Entered DSF 2140 | -5/DSF | Additional patrols routed to DSF 2157 | -5/DSF | Core integrity fell below 20% 2161 | -5/DSF | Reached level 18 2202 | -5/DSF | Identified exit to Garrison 2202 | -5/DSF | Discovered exit to Garrison (range 15) 2247 | -5/DSF | Sterilization system engaged 2254 | -5/DSF | Entered Garrison 2275 | -5/Garrison | Spotted B-75 Beast 2278 | -5/Garrison | Triggered checkpoint 2288 | -5/Garrison | Reached level 19 2308 | -5/Garrison | Destroyed B-75 Beast 2381 | -5/Garrison | Destroyed 11 combat bots 2412 | -5/Garrison | Triggered checkpoint 2435 | -5/Garrison | Reached level 20 2479 | -5/Garrison | Identified exit to Factory 2479 | -5/Garrison | Discovered exit to Factory (range 11) 2502 | -5/Garrison | Entered Factory 2503 | -4/Factory | Core integrity fell below 50% 2503 | -4/Factory | Core integrity fell below 20% 2504 | -4/Factory | Reached level 21 2508 | -4/Factory | Upgraded with Utility slot (x1) 2521 | -4/Factory | Identified exit to Research 2521 | -4/Factory | Identified exit to Upper Caves 2689 | -4/Factory | Reached level 22 2865 | -4/Factory | Entered Research 2866 | -3/Research | Core integrity fell below 50% 2866 | -3/Research | Core integrity fell below 20% 2867 | -3/Research | Reached level 23 2886 | -3/Research | Reached level 24 2912 | -3/Research | Identified exit to Armory 2912 | -3/Research | Identified exit to Testing 2962 | -3/Research | Identified exit to Research 2962 | -3/Research | Discovered exit to Research (range 9) 2987 | -3/Research | Garrison activated, responded to threat 3178 | -3/Research | Reached level 25 3362 | -3/Research | Reached level 26 3365 | -3/Research | First assault squad dispatched 3477 | -3/Research | Entered Testing 3490 | -3/Testing | Found Prototype Hackware 3490 | -3/Testing | Identified System Mapper 3521 | -3/Testing | Spotted PY-2W6D8BMUSU 3540 | -3/Testing | Reached level 27 3540 | -3/Testing | Destroyed PY-2W6D8BMUSU 3584 | -3/Testing | Found Prototype Hackware 3584 | -3/Testing | Identified Exp. Hacking Suite 3611 | -3/Testing | Spotted PD-LO6QFHGG21 3614 | -3/Testing | Destroyed PD-LO6QFHGG21 3671 | -3/Testing | Spotted Striker 3671 | -3/Testing | Spotted Striker 3686 | -3/Testing | Scanned by Researcher 3737 | -3/Testing | Found Prototype Processor 3737 | -3/Testing | Identified Exp. Target Analyzer 3777 | -3/Testing | Build established: Wizard-Scout 3978 | -3/Testing | Destroyed 9 combat bots 4007 | -3/Testing | Discovered exit to Research (range 19) 4110 | -3/Testing | Self-destructed Last Messages --------------- 04015_ U-05 Engineer destroyed. 04015_ Field Warper disabled. 04015_ Slug penetrates Field Warper. 04016_ Acquired 3 matter. 04016_ Acquired 7 matter. 04019_ K-01 Serf collects debris. 04024_ Used Protomatter to restore core integrity (+144, depleted) 04027_ K-01 Serf collects debris. 04037_ Reinforced Shell breached. 04037_ Slug penetrates Reinforced Shell. 04037_ Machine disabled. 04040_ Slug penetrates Reinforced Shell. 04040_ Reinforced Shell breached. 04049_ Acquired 4 matter. 04049_ Acquired 15 matter. 04049_ Acquired 1 matter. 04075_ HV Slug penetrates Wall. 04075_ Harmonic Fracturing Unit disabled. 04102_ Slug penetrates Wall. Map ----- +----------------------------------------------------+ | ##### # " " ### """ & # | | ^ T ##### # """ ### """" """ # | | ###+###### ##### # ### "" # | | ###"####### # ### " " # | | ########### ########### """" # | | """######## # ## # | | """######## # ##########+########## | | R"##### # ######## ######### | | """##### # ######## ######### | | "" ##### # ######## + | | ######## # + ######### | | ######## # ######## ######### | | ################ # ######## ######### | | ######## ###+############# ######### | | """ "" # | | """ "" # | | """ "" # | | """ T" + | | """ """ # ###+######### ###########+########### | | "" "" # # ###?###### ##### | | # #"" ### ###### ##### | | ######### #"" ## ####" """"" ##### | | # #"T """ + ####" """"" ##### | | " # #"" """ ## ####" "" "" ##### | | """" # #"" """ ###+#####T ##### | | """ # # #]@ #" ##### | | !["""" # # # #" ##### | | ]""""" # ###+#####+# ] #" ##### | | """" # ; ;; """ """ ##### | | """"" # ##+####### """S""" "#### | | "" " # ####### # ### | | " " # ##### ##################### ## | | # ############ ###################### # | | # ############ #######################" | | ####+#### ############+######################## | | ########## ##################### | | ########## ##################### | | ########## ##################### | | ########## ##################### | | ### ################### ##################### | | ###+################### ##################### | | ##################################### | | " ##################################### | | """ """ ##################################### | | """" " " ##################################### | | "" " ##################################### | | ##################################### | | ################################################## | | ##########################?####################### | | ########################?######################### | +----------------------------------------------------+ Best States ------------- Heat Dissipation 113 Energy Generation 34 Energy Capacity 300 Matter Stores 450 Matter Capacity 450 Sight Range 20 Terrain Scan Range 24 Terrain Scan Density 1085 Armor Coverage 225 Resistance: KI 50 Resistance: TH 50 Resistance: EX 35 Resistance: EM 35 Resistance: I 35 Resistance: S 35 Resistance: P 35 Power Shielding 33 Evasion (%) 61 Target Analysis 10 Recoil Reduction 4 Matter Filtering 50 Salvage Targeting 2 Offensive Hacking 71 Defensive Hacking 10 Item Schematics ----------------- Exp. Energy Well | -3/Testing | Archive Adv. Dynamic Insulation System | -3/Testing | Archive Com. Tesla Bomb Launcher | -3/Testing | Archive Robot Schematics ------------------ B-74 Champion | -3/Testing | Archive Fabricated ------------ Nothing Repaired ---------- Nothing Alien Tech Used ----------------- None Achievements -------------- None Challenges ------------ None RPGLIKE | -11 -10 -9 -8 -7 -7 -7 -6 -6 -5 -5 -5 -4 -3 -3 --------- Run | Yrd Mat Mat Mat Fac DSF Gar Fac Ext Fac DSF Gar Fac Res Tes Levels Raised 26 | . . 3 2 3 2 2 2 1 1 1 2 2 4 1 XP Earned 46440 | 6000 35 4730 4129 4279 2573 3594 1930 1300 1500 2150 2696 3475 5559 2490 XP Spent 44885 | 5980 . . 7515 4400 1500 . 5720 . 4810 1550 1480 2900 7580 1450 Upgrades 97 | 18 . . 16 4 3 . 7 . 9 8 5 1 23 3 Power Slot 1 | . . . 1 . . . . . . . . . . . Propulsion Slot 3 | 1 . . 2 . . . . . . . . . . . Utility Slot 9 | 2 . . 1 2 . . 2 . 1 . . 1 . . Weapon Slot 3 | 1 . . 1 1 . . . . . . . . . . Core Integrity 32 | 2 . . 2 . . . 4 . 2 6 2 . 14 . Heat Dissipation 6 | 1 . . 2 . . . . . 2 . . . 1 . Energy Generation 1 | . . . . . . . . . . . . . 1 . Matter Storage 3 | . . . 2 . . . . . . . 1 . . . Mass Support 3 | 1 . . 1 . . . 1 . . . . . . . Inventory Capacity 5 | 4 . . 1 . . . . . . . . . . . Sight Range 4 | 1 . . 1 . . . . . . 1 1 . . . Terrain Scan Density 10 | 3 . . 2 . . . . . 1 . . . 4 . Ranged Accuracy 2 | 1 . . . . . . . . . . . . 1 . Hack Attack % 3 | 1 . . . . 2 . . . . . . . . . Hack Defense % 2 | . . . . 1 1 . . . . . . . . . KI Resistance % 3 | . . . . . . . . . . . 1 . 1 1 TH Resistance % 3 | . . . . . . . . . . 1 . . . 2 KI Damage % 4 | . . . . . . . . . 3 . . . 1 . Protomatter Created 1413 | . . 121 . . 22 215 . . . 47 84 100 338 486 Integrity Restored 3297 | . . 255 . . . 597 . . . 93 222 300 786 1044 Core 3297 | . . 255 . . . 597 . . . 93 222 300 786 1044 Protomatter Decayed 146 | . . 36 . . . . . . . . . . . 110 Game ------ Seed GatlingForceThermoblaster Manual? 0 Play Time 00:42:56 Cumulative 1042.6 hours Start 2025.07.23 @ 19:28:03 End 2025.07.23 @ 20:11:29 Sessions 1 Manual Loads 0 Difficulty Explorer Special Mode Winter2019/RPGLIKE Game No. 325 Rogue 104 Adventurer 111 Explorer 110 Win Type - Total 48 Types 22/8/1/7/3/1/1/1/1/3 Lore% 97 Gallery% 99 Achievement% 97 Wizard Run 0 Options --------- Layout 2 ASCII 0 Keyboard 0 Movement Mouse Keybinds 0 Fullscreen 2 Font 24/Smallcaps Map View 50x44 Zoom Use 0% Tactical HUD 1 Map Filters NONE Filters NONE Steam 1 RUN: 43e25533-2896-4afd-a702-953b4701b866